fUSD/lending_fUSD_20250108
["ID","MTS","AMOUNT","RATE_DAILY","PERIOD"]
[348168914,1736362250033,-730.05,0.00011167,2]
[348168915,1736362250043,-500.0,0.00011167,2]
[348168916,1736362250053,-796.37,0.00011167,2]
[348168917,1736362250062,-1887.92,0.00011167,2]
[348168918,1736362250072,-976.17,0.00011167,2]
[348168919,1736362250081,-543.78,0.00011167,2]
[348168920,1736362250090,-500.0,0.00011167,2]
[348168921,1736362250099,-500.0,0.00011167,2]
[348168922,1736362250109,-862.27,0.00011167,2]
[348168923,1736362250119,-500.0,0.00011167,2]
[348168924,1736362250128,-559.19,0.00011167,2]
[348168925,1736362250138,-500.0,0.00011167,2]
[348168926,1736362250148,-508.44,0.00011167,2]
[348168927,1736362250158,-1264.47,0.00011167,2]
[348168928,1736362250168,-533.52,0.00011167,2]
[348168929,1736362250178,-150.0,0.00011183,2]
[348168930,1736362250188,-150.0,0.00011207,2]
[348168931,1736362250197,-500.0,0.0001124,2]
[348168932,1736362250207,-500.0,0.0001124,2]
[348168933,1736362250216,-500.0,0.0001124,2]
[348168934,1736362250225,-2544.2,0.0001124,2]
[348168935,1736362250235,-1042.29,0.0001124,2]
[348168936,1736362250244,-629.99,0.0001124,2]
[348168937,1736362250404,-500.0,0.0001124,2]
[348168938,1736362250430,-926.3,0.0001124,2]
[348168939,1736362250457,-1464.56,0.0001124,2]
[348168940,1736362250489,-1397.23,0.0001124,2]
[348168941,1736362250517,-2215.57,0.0001124,2]
[348168942,1736362250552,-1134.57,0.0001124,2]
[348168943,1736362250590,-3254.43,0.0001124,2]
[348168944,1736362250610,-3864.53,0.0001124,2]
[348168945,1736362250620,-150.0,0.0001126,2]
[348168946,1736362250630,-500.0,0.00011268,2]
[348168947,1736362250639,-500.0,0.00011268,2]
[348168948,1736362250649,-356.66893536,0.00011268,2]
[348168949,1736362250659,-577.51,0.00011268,2]
[348168950,1736362250668,-500.0,0.00011268,2]
[348168951,1736362250678,-587.5,0.00011268,2]
[348168952,1736362250688,-500.0,0.00011268,2]
[348168953,1736362250697,-500.0,0.00011268,2]
[348168954,1736362250707,-500.0,0.00011268,2]
[348168955,1736362250716,-500.0,0.00011268,2]
[348168956,1736362250726,-500.0,0.00011268,2]
[348168957,1736362250736,-500.0,0.00011268,2]
[348168958,1736362250747,-500.0,0.00011268,2]
[348168959,1736362250757,-658.68,0.00011268,2]
[348168960,1736362250766,-500.0,0.00011268,2]
[348168961,1736362250776,-500.0,0.00011268,2]
[348168962,1736362250786,-500.0,0.00011268,2]
[348168963,1736362250796,-500.0,0.00011268,2]
[348168964,1736362250805,-500.0,0.00011268,2]
[348168965,1736362250815,-500.0,0.00011268,2]
[348168966,1736362250825,-500.0,0.00011268,2]
[348168967,1736362250835,-801.18,0.00011268,2]
[348168968,1736362250844,-500.0,0.00011268,2]
[348168969,1736362250854,-701.9,0.00011268,2]
[348168970,1736362250863,-500.0,0.00011268,2]
[348168971,1736362250871,-500.0,0.00011268,2]
[348168972,1736362250881,-609.7,0.00011268,2]
[348168973,1736362250892,-254.73049976,0.00011268,2]
[348168974,1736362250902,-693.7,0.00011268,2]
[348168975,1736362250911,-500.0,0.00011268,2]
[348168976,1736362250924,-718.53,0.00011268,2]
[348168977,1736362250934,-500.0,0.00011268,2]
[348168978,1736362250944,-500.0,0.00011268,2]
[348168979,1736362250954,-500.0,0.00011268,2]
[348168980,1736362250965,-784.05,0.00011268,2]
[348168981,1736362250975,-500.0,0.00011268,2]
[348168982,1736362250984,-557.73,0.00011268,2]
[348168983,1736362250995,-500.0,0.00011268,2]
[348168984,1736362251004,-500.0,0.00011268,2]
[348168985,1736362251014,-560.21,0.00011268,2]
[348168986,1736362251024,-500.0,0.00011268,2]
[348168987,1736362251037,-500.0,0.00011268,2]
[348168988,1736362251047,-500.0,0.00011268,2]
[348168989,1736362251056,-500.0,0.00011268,2]
[348168990,1736362251066,-500.0,0.00011268,2]
[348168991,1736362251076,-500.0,0.00011268,2]
[348168992,1736362251086,-556.2805222,0.00011268,2]
[348168993,1736362251095,-500.0,0.00011268,2]
[348168994,1736362251105,-500.0,0.00011268,2]
[348168995,1736362251114,-642.81,0.00011268,2]
[348168996,1736362251124,-500.0,0.00011268,2]
[348168997,1736362251134,-500.0,0.00011268,2]
[348168998,1736362251143,-956.3,0.00011268,2]
[348168999,1736362251153,-500.0,0.00011268,2]
[348169000,1736362251163,-500.0,0.00011268,2]
[348169001,1736362251172,-587.27,0.00011268,2]
[348169002,1736362251181,-500.0,0.00011268,2]
[348169003,1736362251191,-500.0,0.00011268,2]
[348169004,1736362251200,-603.91,0.00011268,2]
[348169005,1736362251210,-500.0,0.00011268,2]
[348169006,1736362251220,-500.0,0.00011268,2]
[348169007,1736362251229,-500.0,0.00011268,2]
[348169008,1736362251239,-1933.32,0.00011268,2]
[348169009,1736362251249,-500.0,0.00011268,2]
[348169010,1736362251258,-500.0,0.00011268,2]
[348169011,1736362251267,-500.0,0.00011268,2]
[348169012,1736362251279,-657.09,0.00011268,2]
[348169013,1736362251289,-576.46,0.00011268,2]
[348169014,1736362251298,-666.44,0.00011268,2]
[348169015,1736362251307,-554.61,0.00011268,2]
[348169016,1736362251317,-500.0,0.00011268,2]
[348169017,1736362251327,-500.0,0.00011268,2]
[348169018,1736362251336,-2827.12,0.00011268,2]
[348169019,1736362251345,-2378.14,0.00011268,2]
[348169020,1736362251355,-1628.91,0.00011268,2]
[348169021,1736362251366,-590.58,0.00011268,2]
[348169022,1736362251376,-2603.36,0.00011268,2]
[348169023,1736362251386,-500.0,0.00011268,2]
[348169024,1736362251395,-1087.38,0.00011268,2]
[348169025,1736362251404,-500.0,0.00011268,2]
[348169026,1736362251414,-500.0,0.00011268,2]
[348169027,1736362251423,-500.0,0.00011268,2]
[348169028,1736362251433,-3082.77,0.00011268,2]
[348169029,1736362251443,-573.65,0.00011268,2]
[348169030,1736362251457,-787.24,0.00011268,2]
[348169031,1736362251467,-500.0,0.00011268,2]
[348169032,1736362251476,-1301.03,0.00011268,2]
[348169033,1736362251486,-500.0,0.00011268,2]
[348169034,1736362251496,-1988.72,0.00011268,2]
[348169035,1736362251506,-500.0,0.00011268,2]
[348169036,1736362251516,-500.0,0.00011268,2]
[348169037,1736362251525,-500.0,0.00011268,2]
[348169038,1736362251537,-500.0,0.00011268,2]
[348169039,1736362251547,-1555.02,0.00011268,2]
[348169040,1736362251556,-500.0,0.00011268,2]
[348169041,1736362251566,-1430.04,0.00011268,2]
[348169042,1736362251575,-500.0,0.00011268,2]
[348169043,1736362251585,-981.86,0.00011268,2]
[348169044,1736362251594,-161.86793526,0.00011268,2]
[348169045,1736362251605,-692.07,0.00011268,2]
[348169046,1736362251615,-1072.98,0.00011268,2]
[348169047,1736362251625,-657.45,0.00011268,2]
[348169048,1736362251635,-948.96,0.00011268,2]
[348169049,1736362251645,-553.15,0.00011268,2]
[348169050,1736362251655,-500.0,0.00011268,2]
[348169051,1736362251664,-2333.81,0.00011268,2]
[348169052,1736362251674,-500.0,0.00011268,2]
[348169053,1736362251683,-500.0,0.00011268,2]
[348169054,1736362251693,-500.0,0.00011268,2]
[348169055,1736362251702,-762.73,0.00011268,2]
[348169056,1736362251712,-500.0,0.00011268,2]
[348169057,1736362251722,-688.07,0.00011268,2]
[348169058,1736362251731,-500.0,0.00011268,2]
[348169059,1736362251741,-500.0,0.00011268,2]
[348169060,1736362251750,-500.0,0.00011268,2]
[348169061,1736362251759,-2329.942514,0.00011268,2]
[348169062,1736362251770,-500.0,0.00011268,2]
[348169063,1736362251779,-1310.72,0.00011268,2]
[348169064,1736362251789,-1030.81,0.00011268,2]
[348169065,1736362251798,-500.0,0.00011268,2]
[348169066,1736362251808,-500.0,0.00011268,2]
[348169067,1736362251817,-2618.54,0.00011268,2]
[348169068,1736362251827,-500.0,0.00011268,2]
[348169069,1736362251837,-500.0,0.00011268,2]
[348169070,1736362251846,-2072.313167,0.00011268,2]
[348169071,1736362251855,-1325.27,0.00011268,2]
[348169072,1736362251865,-500.0,0.00011268,2]
[348169073,1736362251875,-621.86,0.00011268,2]
[348169074,1736362251884,-500.0,0.00011268,2]
[348169075,1736362251894,-500.0,0.00011268,2]
[348169076,1736362251904,-500.0,0.00011268,2]
[348169077,1736362251914,-3041.28,0.00011268,2]
[348169078,1736362251928,-1664.79,0.00011268,2]
[348169079,1736362251938,-500.0,0.00011268,2]
[348169080,1736362251948,-500.0,0.00011269,2]
[348169081,1736362251959,-500.0,0.00011269,2]
[348169082,1736362251969,-500.0,0.00011269,2]
[348169083,1736362251979,-500.0,0.00011269,2]
[348169084,1736362251988,-500.0,0.00011269,2]
[348169085,1736362251998,-500.0,0.00011269,2]
[348169086,1736362252008,-623.21512616,0.00011269,2]
[348169087,1736362252018,-500.0,0.00011269,2]
[348169088,1736362252027,-596.27,0.00011269,2]
[348169089,1736362252038,-243.73154811,0.00011269,2]
[348169090,1736362252047,-500.0,0.00011269,2]
[348169091,1736362252057,-500.0,0.00011269,2]
[348169092,1736362252067,-500.0,0.00011269,2]
[348169093,1736362252077,-500.0,0.00011269,2]
[348169094,1736362252087,-500.0,0.00011269,2]
[348169095,1736362252097,-608.48,0.00011269,2]
[348169096,1736362252107,-649.58,0.00011269,2]
[348169097,1736362252117,-500.0,0.00011269,2]
[348169098,1736362252127,-720.65,0.00011269,2]
[348169099,1736362252136,-500.0,0.00011269,2]
[348169100,1736362252148,-474.12,0.00011269,2]
[348169101,1736362252169,-500.0,0.00011269,2]
[348169102,1736362252190,-500.0,0.00011269,2]
[348169103,1736362252212,-500.0,0.00011269,2]
[348169104,1736362252232,-500.0,0.00011269,2]
[348169105,1736362252253,-299.95,0.00011269,2]
[348169106,1736362252274,-500.0,0.00011269,2]
[348169107,1736362252296,-500.0,0.00011269,2]
[348169108,1736362252317,-500.0,0.00011269,2]
[348169109,1736362252339,-500.0,0.00011269,2]
[348169110,1736362252359,-500.0,0.00011269,2]
[348169111,1736362252381,-500.0,0.00011269,2]
[348169112,1736362252402,-500.0,0.00011269,2]
[348169113,1736362252420,-500.0,0.00011269,2]
[348169114,1736362252430,-500.0,0.00011269,2]
[348169115,1736362252440,-500.0,0.00011269,2]
[348169116,1736362252449,-500.0,0.00011269,2]
[348169117,1736362252458,-624.94,0.00011269,2]
[348169118,1736362252468,-500.0,0.00011269,2]
[348169119,1736362252478,-665.75,0.00011269,2]
[348169120,1736362252487,-659.93,0.00011269,2]
[348169121,1736362252497,-500.0,0.00011269,2]
[348169122,1736362252507,-250.98,0.00011269,2]
[348169123,1736362252516,-500.0,0.00011269,2]
[348169124,1736362252526,-500.0,0.00011269,2]
[348169125,1736362252537,-500.0,0.00011269,2]
[348169126,1736362252547,-500.0,0.00011269,2]
[348169127,1736362252556,-500.0,0.00011269,2]
[348169128,1736362252565,-500.0,0.00011269,2]
[348169129,1736362252575,-500.0,0.00011269,2]
[348169130,1736362252584,-500.0,0.00011269,2]
[348169131,1736362252593,-500.0,0.00011269,2]
[348169132,1736362252602,-500.0,0.00011269,2]
[348169133,1736362252612,-500.0,0.00011269,2]
[348169134,1736362252621,-500.0,0.00011269,2]
[348169135,1736362252630,-500.0,0.00011269,2]
[348169136,1736362252640,-500.0,0.00011269,2]
[348169137,1736362252649,-500.0,0.00011269,2]
[348169138,1736362252659,-500.0,0.00011269,2]
[348169139,1736362252668,-500.0,0.00011269,2]
[348169140,1736362252677,-500.0,0.00011269,2]
[348169141,1736362252687,-500.0,0.00011269,2]
[348169142,1736362252697,-500.0,0.00011269,2]
[348169143,1736362252706,-500.0,0.00011269,2]
[348169144,1736362252715,-500.0,0.00011269,2]
[348169145,1736362252725,-500.0,0.00011269,2]
[348169146,1736362252735,-1462.34,0.00011269,2]
[348169147,1736362252744,-500.0,0.00011269,2]
[348169148,1736362252754,-757.86,0.00011269,2]
[348169149,1736362252763,-643.05,0.00011269,2]
[348169150,1736362252772,-701.16,0.00011269,2]
[348169151,1736362252783,-2580.23,0.00011269,2]
[348169152,1736362252793,-553.17,0.00011269,2]
[348169153,1736362252803,-628.18,0.00011269,2]
[348169154,1736362252813,-500.0,0.00011269,2]
[348169155,1736362252823,-500.0,0.00011269,2]
[348169156,1736362252833,-500.0,0.00011269,2]
[348169157,1736362252842,-150.0,0.0001127,2]
[348169158,1736362252852,-150.227651,0.00011294,2]
[348169159,1736362252861,-150.227652,0.00011294,2]
[348169160,1736362252871,-500.0,0.000113,2]
[348169161,1736362252880,-500.0,0.000113,2]
[348169162,1736362252890,-500.0,0.000113,2]
[348169163,1736362252900,-500.0,0.000113,2]
[348169164,1736362252909,-500.0,0.000113,2]
[348169165,1736362252923,-500.0,0.000113,2]
[348169166,1736362252932,-500.0,0.000113,2]
[348169167,1736362252941,-500.0,0.000113,2]
[348169168,1736362252951,-500.0,0.000113,2]
[348169169,1736362252960,-546.45,0.000113,2]
[348169170,1736362252970,-150.0,0.00011313,2]
[348169171,1736362252983,-150.0,0.00011319,2]
[348169172,1736362252992,-500.0,0.00011341,2]
[348169173,1736362253003,-1215.3,0.00011342,2]
[348169174,1736362253014,-993.2,0.00011342,2]
[348169175,1736362253023,-437.79,0.00011342,2]
[348169176,1736362253034,-771.95,0.00011342,2]
[348169177,1736362253043,-771.95,0.00011342,2]
[348169178,1736362253053,-437.79,0.00011342,2]
[348169179,1736362253062,-771.95,0.00011342,2]
[348169180,1736362253072,-437.79,0.00011342,2]
[348169181,1736362253081,-771.95,0.00011342,2]
[348169182,1736362253091,-437.79,0.00011342,2]
[348169183,1736362253101,-437.79,0.00011342,2]
[348169184,1736362253111,-771.95,0.00011342,2]
[348169185,1736362253120,-875.58,0.00011342,2]
[348169186,1736362253130,-93937.24983319,0.00011343,2]
[348169187,1736362253139,-214.31444851,0.00011344,2]
[348169188,1736362253149,-150.0,0.00011367,2]
[348169189,1736362253158,-150.0,0.00011381,2]
[348169190,1736362253168,-150.13441252,0.00011384,5]
[348169191,1736362253177,-500.0,0.00011403,2]
[348169192,1736362253187,-500.0,0.00011403,2]
[348169193,1736362253196,-500.0,0.00011404,2]
[348169194,1736362253206,-500.0,0.00011404,2]
[348169195,1736362253215,-1871.82,0.00011404,2]
[348169196,1736362253224,-500.0,0.00011404,2]
[348169197,1736362253234,-651.25,0.00011404,2]
[348169198,1736362253244,-515.76,0.00011404,2]
[348169199,1736362253254,-507.55,0.00011404,2]
[348169200,1736362253263,-500.0,0.00011404,2]
[348169201,1736362253273,-500.0,0.00011404,2]
[348169202,1736362253284,-500.0,0.00011404,2]
[348169203,1736362253293,-1500.0,0.00011417,2]
[348169204,1736362253302,-150.0,0.0001142,2]
[348169205,1736362253312,-1000.0,0.00011427,2]
[348169206,1736362253485,-577.93861152,0.00011441,2]
[348169207,1736362253494,-992.92,0.00011441,2]
[348169208,1736362253503,-500.0,0.00011441,2]
[348169209,1736362253513,-605.86,0.00011441,2]
[348169210,1736362253522,-718.38,0.00011441,2]
[348169211,1736362253531,-688.45,0.00011441,2]
[348169212,1736362253540,-1118.67,0.00011441,2]
[348169213,1736362253549,-618.66,0.00011441,2]
[348169214,1736362253559,-868.06,0.00011441,2]
[348169215,1736362253567,-1466.85,0.00011441,2]
[348169216,1736362253577,-780.29,0.00011441,2]
[348169217,1736362253586,-730.05,0.00011441,2]
[348169218,1736362253596,-500.0,0.00011441,2]
[348169219,1736362253606,-796.37,0.00011441,2]
[348169220,1736362253616,-1887.92,0.00011441,2]
[348169221,1736362253626,-976.17,0.00011441,2]
[348169222,1736362253635,-543.78,0.00011441,2]
[348169223,1736362253645,-500.0,0.00011441,2]
[348169224,1736362253654,-500.0,0.00011441,2]
[348169225,1736362253663,-862.27,0.00011441,2]
[348169226,1736362253672,-500.0,0.00011441,2]
[348169227,1736362253682,-559.19,0.00011441,2]
[348169228,1736362253691,-517.54,0.00011441,2]
[348169229,1736362253700,-508.44,0.00011441,2]
[348169230,1736362253709,-1264.47,0.00011441,2]
[348169231,1736362253719,-533.52,0.00011441,2]
[348169232,1736362253728,-150.0,0.00011456,2]
[348169233,1736362253738,-150.0,0.00011473,2]
[348169234,1736362253748,-150.0,0.00011479,2]
[348169235,1736362253757,-437.05,0.00011479,2]
[348169236,1736362253767,-150.0,0.00011479,2]
[348169237,1736362253776,-150.0,0.00011479,2]
[348169238,1736362253788,-344.74,0.00011479,2]
[348169239,1736362253798,-979.58,0.00011479,2]
[348169240,1736362253808,-979.58,0.00011479,2]
[348169241,1736362253817,-437.05,0.00011479,2]
[348169242,1736362253826,-150.0,0.00011479,2]
[348169243,1736362253836,-150.0,0.00011479,2]
[348169244,1736362253845,-150.0,0.00011479,2]
[348169245,1736362253855,-437.05,0.00011479,2]
[348169246,1736362253865,-150.0,0.00011479,2]
[348169247,1736362253875,-979.58,0.00011479,2]
[348169248,1736362253884,-150.0,0.00011479,2]
[348169249,1736362253893,-150.0,0.00011479,2]
[348169250,1736362253903,-351.22,0.00011479,2]
[348169251,1736362253912,-150.0,0.00011479,2]
[348169252,1736362253923,-150.0,0.00011479,2]
[348169253,1736362253934,-150.0,0.00011479,2]
[348169254,1736362253943,-150.0,0.00011479,2]
[348169255,1736362253954,-150.0,0.00011479,2]
[348169256,1736362253964,-301.12,0.00011479,2]
[348169257,1736362253974,-154.04474973,0.00011491,2]
[348169258,1736362253984,-150.0,0.00011493,2]
[348169259,1736362253994,-2751.0,0.00011507,2]
[348169260,1736362254006,-500.0,0.00011514,2]
[348169261,1736362254018,-500.0,0.00011514,2]
[348169262,1736362254028,-500.0,0.00011514,2]
[348169263,1736362254039,-2544.2,0.00011514,2]
[348169264,1736362254048,-1042.29,0.00011514,2]
[348169265,1736362254058,-629.99,0.00011514,2]
[348169266,1736362254067,-500.0,0.00011514,2]
[348169267,1736362254078,-926.3,0.00011514,2]
[348169268,1736362254087,-1464.56,0.00011514,2]
[348169269,1736362254099,-1397.23,0.00011514,2]
[348169270,1736362254112,-2215.57,0.00011514,2]
[348169271,1736362254135,-1134.57,0.00011514,2]
[348169272,1736362254158,-3254.43,0.00011514,2]
[348169273,1736362254185,-3864.53,0.00011514,2]
[348169274,1736362254225,-150.0,0.00011527,2]
[348169275,1736362254271,-500.0,0.00011542,2]
[348169276,1736362254325,-500.0,0.00011542,2]
[348169277,1736362254375,-577.51,0.00011542,2]
[348169278,1736362254404,-500.0,0.00011542,2]
[348169279,1736362254413,-587.5,0.00011542,2]
[348169280,1736362254424,-500.0,0.00011542,2]
[348169281,1736362254434,-500.0,0.00011542,2]
[348169282,1736362254444,-427.53,0.00011542,2]
[348169283,1736362254454,-500.0,0.00011542,2]
[348169284,1736362254465,-500.0,0.00011542,2]
[348169285,1736362254474,-500.0,0.00011542,2]
[348169286,1736362254484,-500.0,0.00011542,2]
[348169287,1736362254498,-658.68,0.00011542,2]
[348169288,1736362254508,-356.46435729,0.00011542,2]
[348169289,1736362254518,-562.07974956,0.00011542,2]
[348169290,1736362254528,-500.0,0.00011542,2]
[348169291,1736362254541,-500.0,0.00011542,2]
[348169292,1736362254551,-500.0,0.00011542,2]
[348169293,1736362254560,-500.0,0.00011542,2]
[348169294,1736362254570,-500.0,0.00011542,2]
[348169295,1736362254580,-801.18,0.00011542,2]
[348169296,1736362254589,-154.94149111,0.00011542,2]
[348169297,1736362254598,-701.9,0.00011542,2]
[348169298,1736362254608,-500.0,0.00011542,2]
[348169299,1736362254617,-616.47,0.00011542,2]
[348169300,1736362254627,-609.7,0.00011542,2]
[348169301,1736362254637,-693.7,0.00011542,2]
[348169302,1736362254647,-500.0,0.00011542,2]
[348169303,1736362254656,-500.0,0.00011542,2]
[348169304,1736362254666,-718.53,0.00011542,2]
[348169305,1736362254675,-500.0,0.00011542,2]
[348169306,1736362254685,-500.0,0.00011542,2]
[348169307,1736362254694,-784.05,0.00011542,2]
[348169308,1736362254704,-500.0,0.00011542,2]
[348169309,1736362254714,-557.73,0.00011542,2]
[348169310,1736362254724,-500.0,0.00011542,2]
[348169311,1736362254734,-500.0,0.00011542,2]
[348169312,1736362254744,-560.21,0.00011542,2]
[348169313,1736362254755,-411.82,0.00011542,2]
[348169314,1736362254766,-633.28,0.00011542,2]
[348169315,1736362254775,-500.0,0.00011542,2]
[348169316,1736362254786,-500.0,0.00011542,2]
[348169317,1736362254796,-500.0,0.00011542,2]
[348169318,1736362254806,-500.0,0.00011542,2]
[348169319,1736362254817,-500.0,0.00011542,2]
[348169320,1736362254827,-643.17,0.00011542,2]
[348169321,1736362254837,-642.81,0.00011542,2]
[348169322,1736362254846,-500.0,0.00011542,2]
[348169323,1736362254856,-500.0,0.00011542,2]
[348169324,1736362254865,-217.23014651,0.00011542,2]
[348169325,1736362254875,-956.3,0.00011542,2]
[348169326,1736362254884,-500.0,0.00011542,2]
[348169327,1736362254894,-500.0,0.00011542,2]
[348169328,1736362254903,-500.0,0.00011542,2]
[348169329,1736362254913,-603.91,0.00011542,2]
[348169330,1736362254933,-500.0,0.00011542,2]
[348169331,1736362254951,-500.0,0.00011542,2]
[348169332,1736362254965,-220.75225342,0.00011542,2]
[348169333,1736362254980,-1933.32,0.00011542,2]
[348169334,1736362254996,-500.0,0.00011542,2]
[348169335,1736362255012,-500.0,0.00011542,2]
[348169336,1736362255026,-500.0,0.00011542,2]
[348169337,1736362255040,-657.09,0.00011542,2]
[348169338,1736362255054,-576.46,0.00011542,2]
[348169339,1736362255069,-666.44,0.00011542,2]
[348169340,1736362255083,-554.61,0.00011542,2]
[348169341,1736362255100,-436.33225393,0.00011542,2]
[348169342,1736362255116,-500.0,0.00011542,2]
[348169343,1736362255133,-2827.12,0.00011542,2]
[348169344,1736362255148,-2378.14,0.00011542,2]
[348169345,1736362255163,-1628.91,0.00011542,2]
[348169346,1736362255178,-590.58,0.00011542,2]
[348169347,1736362255195,-2603.36,0.00011542,2]
[348169348,1736362255209,-500.0,0.00011542,2]
[348169349,1736362255220,-500.0,0.00011542,2]
[348169350,1736362255234,-1087.38,0.00011542,2]
[348169351,1736362255251,-500.0,0.00011542,2]
[348169352,1736362255262,-500.0,0.00011542,2]
[348169353,1736362255274,-3082.77,0.00011542,2]
[348169354,1736362255290,-573.65,0.00011542,2]
[348169355,1736362255304,-787.24,0.00011542,2]
[348169356,1736362255316,-500.0,0.00011542,2]
[348169357,1736362255329,-1301.03,0.00011542,2]
[348169358,1736362255342,-500.0,0.00011542,2]
[348169359,1736362255356,-1988.72,0.00011542,2]
[348169360,1736362255373,-500.0,0.00011542,2]
[348169361,1736362255386,-500.0,0.00011542,2]
[348169362,1736362255399,-500.0,0.00011542,2]
[348169363,1736362255413,-500.0,0.00011542,2]
[348169364,1736362255426,-1555.02,0.00011542,2]
[348169365,1736362255439,-500.0,0.00011542,2]
[348169366,1736362255452,-1430.04,0.00011542,2]
[348169367,1736362255466,-500.0,0.00011542,2]
[348169368,1736362255478,-981.86,0.00011542,2]
[348169369,1736362255491,-692.07,0.00011542,2]
[348169370,1736362255505,-1072.98,0.00011542,2]
[348169371,1736362255518,-657.45,0.00011542,2]
[348169372,1736362255531,-948.96,0.00011542,2]
[348169373,1736362255544,-553.15,0.00011542,2]
[348169374,1736362255556,-500.0,0.00011542,2]
[348169375,1736362255569,-2333.81,0.00011542,2]
[348169376,1736362255583,-500.0,0.00011542,2]
[348169377,1736362255596,-500.0,0.00011542,2]
[348169378,1736362255609,-500.0,0.00011542,2]
[348169379,1736362255621,-762.73,0.00011542,2]
[348169380,1736362255633,-500.0,0.00011542,2]
[348169381,1736362255646,-688.07,0.00011542,2]
[348169382,1736362255658,-500.0,0.00011542,2]
[348169383,1736362255671,-500.0,0.00011542,2]
[348169384,1736362255684,-500.0,0.00011542,2]
[348169385,1736362255697,-2329.942514,0.00011542,2]
[348169386,1736362255710,-500.0,0.00011542,2]
[348169387,1736362255723,-1310.72,0.00011542,2]
[348169388,1736362255736,-1030.81,0.00011542,2]
[348169389,1736362255750,-500.0,0.00011542,2]
[348169390,1736362255765,-500.0,0.00011542,2]
[348169391,1736362255778,-2618.54,0.00011542,2]
[348169392,1736362255792,-500.0,0.00011542,2]
[348169393,1736362255805,-500.0,0.00011542,2]
[348169394,1736362255818,-2072.313167,0.00011542,2]
[348169395,1736362255831,-1325.27,0.00011542,2]
[348169396,1736362255844,-500.0,0.00011542,2]
[348169397,1736362255856,-621.86,0.00011542,2]
[348169398,1736362255869,-500.0,0.00011542,2]
[348169399,1736362255882,-500.0,0.00011542,2]
[348169400,1736362255897,-500.0,0.00011542,2]
[348169401,1736362255909,-3041.28,0.00011542,2]
[348169402,1736362255925,-1664.79,0.00011542,2]
[348169403,1736362255937,-500.0,0.00011542,2]
[348169404,1736362255950,-543.57,0.00011543,2]
[348169405,1736362255963,-500.0,0.00011543,2]
[348169406,1736362255976,-500.0,0.00011543,2]
[348169407,1736362255988,-500.0,0.00011543,2]
[348169408,1736362256002,-500.0,0.00011543,2]
[348169409,1736362256015,-500.0,0.00011543,2]
[348169410,1736362256028,-500.0,0.00011543,2]
[348169411,1736362256043,-500.0,0.00011543,2]
[348169412,1736362256056,-487.26,0.00011543,2]
[348169413,1736362256068,-649.72,0.00011543,2]